[Event "*** Titled Tuesday Blitz"]
[Site "Chess.com"]
[Date "2021.04.06"]
[Round "9"]
[White "Chesswizard_2007"]
[Black "babyking1205"]
[Result "0-1"]
[WhiteElo "2704"]
[BlackElo "2603"]
[TimeControl "180+1"]
[EndTime "11:48:23 PDT"]
[Termination "babyking1205 won by checkmate"]

1. e4 {[%clk 0:02:56.8]} 1... c5 {[%clk 0:02:59.5]} 2. Nf3 {[%clk 0:02:55.7]}
2... d6 {[%clk 0:03:00]} 3. d4 {[%clk 0:02:52.4]} 3... cxd4 {[%clk 0:03:00.9]}
4. Nxd4 {[%clk 0:02:53.3]} 4... Nf6 {[%clk 0:03:01.4]} 5. Nc3 {[%clk 0:02:53.6]}
5... a6 {[%clk 0:03:01.7]} 6. Nb3 {[%clk 0:02:54.1]} 6... e5 {[%clk 0:02:59.2]}
7. Bg5 {[%clk 0:02:52.9]} 7... Be7 {[%clk 0:02:59.3]} 8. Be2 {[%clk 0:02:51.3]}
8... Be6 {[%clk 0:02:59.4]} 9. O-O {[%clk 0:02:44.5]} 9... Nbd7 {[%clk
0:02:59.6]} 10. a4 {[%clk 0:02:40]} 10... Rc8 {[%clk 0:02:59.6]} 11. Bf3 {[%clk
0:02:37]} 11... O-O {[%clk 0:02:58.7]} 12. Nd5 {[%clk 0:02:22]} 12... Bxd5
{[%clk 0:02:53.5]} 13. exd5 {[%clk 0:02:22.7]} 13... h6 {[%clk 0:02:54.2]} 14.
Be3 {[%clk 0:02:21.6]} 14... e4 {[%clk 0:02:53.7]} 15. Be2 {[%clk 0:02:20.8]}
15... Ne5 {[%clk 0:02:53.9]} 16. Qd2 {[%clk 0:02:14.5]} 16... Qd7 {[%clk
0:02:36.3]} 17. h3 {[%clk 0:02:00.8]} 17... Nc4 {[%clk 0:02:35.2]} 18. Bxc4
{[%clk 0:01:58.9]} 18... Rxc4 {[%clk 0:02:36.1]} 19. Na5 {[%clk 0:01:57.3]}
19... Rxa4 {[%clk 0:02:34.2]} 20. Rxa4 {[%clk 0:01:55.9]} 20... Qxa4 {[%clk
0:02:35.1]} 21. Nxb7 {[%clk 0:01:53.6]} 21... Qb5 {[%clk 0:02:34.8]} 22. Na5
{[%clk 0:01:50.6]} 22... Qxd5 {[%clk 0:02:27.8]} 23. Qc3 {[%clk 0:01:28.7]}
23... Nd7 {[%clk 0:02:10]} 24. b4 {[%clk 0:00:58]} 24... Bf6 {[%clk 0:01:56.2]}
25. Qc7 {[%clk 0:00:56.8]} 25... Ne5 {[%clk 0:01:49.5]} 26. c4 {[%clk
0:00:56.7]} 26... Qd3 {[%clk 0:01:46.4]} 27. Qb6 {[%clk 0:00:34.4]} 27... Nxc4
{[%clk 0:01:38.9]} 28. Qxa6 {[%clk 0:00:34.2]} 28... d5 {[%clk 0:00:57.5]} 29.
Nxc4 {[%clk 0:00:32.6]} 29... dxc4 {[%clk 0:00:56.8]} 30. b5 {[%clk 0:00:31.7]}
30... c3 {[%clk 0:00:50.9]} 31. Qc6 {[%clk 0:00:31.4]} 31... Be5 {[%clk
0:00:30.4]} 32. Rc1 {[%clk 0:00:21.4]} 32... Rd8 {[%clk 0:00:27.2]} 33. g4
{[%clk 0:00:16.6]} 33... h5 {[%clk 0:00:21.8]} 34. g5 {[%clk 0:00:13.6]} 34...
h4 {[%clk 0:00:18.4]} 35. b6 {[%clk 0:00:12.7]} 35... Qe2 {[%clk 0:00:13.5]} 36.
g6 {[%clk 0:00:10.5]} 36... Qf3 {[%clk 0:00:11.2]} 37. gxf7+ {[%clk 0:00:06.9]}
37... Qxf7 {[%clk 0:00:11.3]} 38. b7 {[%clk 0:00:05.8]} 38... Qf5 {[%clk
0:00:07.8]} 39. Qc4+ {[%clk 0:00:04.4]} 39... Kh8 {[%clk 0:00:06.2]} 40. Qf1
{[%clk 0:00:05.3]} 40... Qf7 {[%clk 0:00:03.9]} 41. Qg2 {[%clk 0:00:05.2]} 41...
Qxb7 {[%clk 0:00:03.9]} 42. Qg5 {[%clk 0:00:05.9]} 42... Bf6 {[%clk 0:00:03.3]}
43. Qh5+ {[%clk 0:00:04.6]} 43... Kg8 {[%clk 0:00:03.7]} 44. Qc5 {[%clk
0:00:04.7]} 44... Qe7 {[%clk 0:00:03.3]} 45. Qc4+ {[%clk 0:00:04.8]} 45... Qf7
{[%clk 0:00:03.4]} 46. Qxe4 {[%clk 0:00:05.3]} 46... Re8 {[%clk 0:00:03.6]} 47.
Qf3 {[%clk 0:00:05.4]} 47... Qg6+ {[%clk 0:00:03.9]} 48. Kf1 {[%clk 0:00:05.3]}
48... Qd3+ {[%clk 0:00:03.9]} 49. Qe2 {[%clk 0:00:05.5]} 49... Qe4 {[%clk
0:00:03.7]} 50. Kg1 {[%clk 0:00:05.1]} 50... Be5 {[%clk 0:00:03.1]} 51. Qg4
{[%clk 0:00:05.3]} 51... Qxg4+ {[%clk 0:00:03.1]} 52. hxg4 {[%clk 0:00:06.2]}
52... Rc8 {[%clk 0:00:03.7]} 53. Rc2 {[%clk 0:00:05.7]} 53... Kf7 {[%clk
0:00:03.4]} 54. Kg2 {[%clk 0:00:05.9]} 54... Ke6 {[%clk 0:00:04.1]} 55. Kh3
{[%clk 0:00:06.3]} 55... Kd5 {[%clk 0:00:04.6]} 56. Kxh4 {[%clk 0:00:05.9]}
56... Ke4 {[%clk 0:00:05.3]} 57. Kg5 {[%clk 0:00:06.1]} 57... Kd3 {[%clk
0:00:05.7]} 58. Rc1 {[%clk 0:00:06.7]} 58... c2 {[%clk 0:00:06.1]} 59. Kg6
{[%clk 0:00:07.1]} 59... Bb2 {[%clk 0:00:06.1]} 60. Rh1 {[%clk 0:00:06.8]} 60...
Rc6+ {[%clk 0:00:06]} 61. Kh7 {[%clk 0:00:03.8]} 61... c1=Q {[%clk 0:00:06.1]}
62. Bxc1 {[%clk 0:00:03.2]} 62... Bxc1 {[%clk 0:00:07]} 63. Kxg7 {[%clk
0:00:03.3]} 63... Ke4 {[%clk 0:00:06.5]} 64. Re1+ {[%clk 0:00:01.8]} 64... Kf4
{[%clk 0:00:06.5]} 65. Rd1 {[%clk 0:00:02.1]} 65... Kxg4 {[%clk 0:00:06.6]} 66.
Kf7 {[%clk 0:00:02.5]} 66... Bf4 {[%clk 0:00:06.8]} 67. Ke7 {[%clk 0:00:03.1]}
67... Kf5 {[%clk 0:00:06.9]} 68. Kd7 {[%clk 0:00:03.7]} 68... Rc7+ {[%clk
0:00:06.6]} 69. Ke8 {[%clk 0:00:04.2]} 69... Rh7 {[%clk 0:00:06.9]} 70. Kd8
{[%clk 0:00:04.3]} 70... Be5 {[%clk 0:00:07.1]} 71. Kc8 {[%clk 0:00:04.6]} 71...
Ke6 {[%clk 0:00:07.4]} 72. f4 {[%clk 0:00:04.3]} 72... Rc7+ {[%clk 0:00:07.1]}
73. Kd8 {[%clk 0:00:01.6]} 73... Bxf4 {[%clk 0:00:07.3]} 74. Re1+ {[%clk
0:00:01.3]} 74... Kf5 {[%clk 0:00:07.7]} 75. Rf1 {[%clk 0:00:01.5]} 75... Rh7
{[%clk 0:00:07.8]} 76. Kc8 {[%clk 0:00:01.9]} 76... Ke4 {[%clk 0:00:07.4]} 77.
Kd8 {[%clk 0:00:02.3]} 77... Be5 {[%clk 0:00:07.8]} 78. Ke8 {[%clk 0:00:02.8]}
78... Kd5 {[%clk 0:00:08.1]} 79. Rf7 {[%clk 0:00:03.5]} 79... Rh8+ {[%clk
0:00:07.5]} 80. Kd7 {[%clk 0:00:04.2]} 80... Ra8 {[%clk 0:00:07.1]} 81. Re7
{[%clk 0:00:03.4]} 81... Ra7+ {[%clk 0:00:07.3]} 82. Ke8 {[%clk 0:00:03.6]}
82... Ra6 {[%clk 0:00:07.7]} 83. Kf7 {[%clk 0:00:04]} 83... Rf6+ {[%clk
0:00:07.4]} 84. Ke8 {[%clk 0:00:04.6]} 84... Rf2 {[%clk 0:00:07.9]} 85. Rd7+
{[%clk 0:00:05]} 85... Bd6 {[%clk 0:00:08]} 86. Rf7 {[%clk 0:00:05.6]} 86...
Re2+ {[%clk 0:00:08.5]} 87. Kd7 {[%clk 0:00:06.3]} 87... Ra2 {[%clk 0:00:08.2]}
88. Rf5+ {[%clk 0:00:06.9]} 88... Be5 {[%clk 0:00:08.7]} 89. Rf3 {[%clk
0:00:06.8]} 89... Ra7+ {[%clk 0:00:08.7]} 90. Kc8 {[%clk 0:00:07.2]} 90... Ke6
{[%clk 0:00:08.9]} 91. Rb3 {[%clk 0:00:03.7]} 91... Rc7+ {[%clk 0:00:08.9]} 92.
Kd8 {[%clk 0:00:03.9]} 92... Rc2 {[%clk 0:00:07.4]} 93. Rb6+ {[%clk 0:00:03.1]}
93... Bd6 {[%clk 0:00:07.2]} 94. Rb1 {[%clk 0:00:03.5]} 94... Be7+ {[%clk
0:00:07.4]} 95. Ke8 {[%clk 0:00:03.6]} 95... Rc8# {[%clk 0:00:08.3]} 0-1

[Event "*** Titled Tuesday Blitz"]
[Site "Chess.com"]
[Date "2021.04.06"]
[Round "10"]
[White "Kapibara_Warri0r"]
[Black "MerryPoppies"]
[Result "1-0"]
[WhiteElo "2225"]
[BlackElo "2141"]
[TimeControl "180+1"]
[EndTime "11:51:00 PDT"]
[Termination "Kapibara_Warri0r won by resignation"]

1. d4 {[%clk 0:03:00.9]} 1... d5 {[%clk 0:02:59.2]} 2. Bf4 {[%clk 0:02:51.5]}
2... Nf6 {[%clk 0:02:58.4]} 3. e3 {[%clk 0:02:47.9]} 3... e6 {[%clk 0:02:58.3]}
4. c3 {[%clk 0:02:46.1]} 4... Bd6 {[%clk 0:02:58.5]} 5. Be5 {[%clk 0:02:42.3]}
5... Nbd7 {[%clk 0:02:57.9]} 6. f4 {[%clk 0:02:41.5]} 6... O-O {[%clk
0:02:54.6]} 7. Nf3 {[%clk 0:02:41]} 7... Bxe5 {[%clk 0:02:54.7]} 8. fxe5 {[%clk
0:02:39.4]} 8... Ne4 {[%clk 0:02:54.9]} 9. Bd3 {[%clk 0:02:39.3]} 9... f6 {[%clk
0:02:54.3]} 10. Qc2 {[%clk 0:02:17.3]} 10... fxe5 {[%clk 0:02:49.2]} 11. dxe5
{[%clk 0:01:54.9]} 11... Qh4+ {[%clk 0:02:47.4]} 12. Nxh4 {[%clk 0:01:48.2]} 1-0

[Event "*** Titled Tuesday Blitz"]
[Site "Chess.com"]
[Date "2021.04.06"]
[Round "10"]
[White "geordie_derraugh"]
[Black "ChronicUnhappiness"]
[Result "0-1"]
[WhiteElo "2417"]
[BlackElo "2318"]
[TimeControl "180+1"]
[EndTime "11:53:17 PDT"]
[Termination "ChronicUnhappiness won by resignation"]

1. e4 {[%clk 0:03:00.9]} 1... Nf6 {[%clk 0:03:00.9]} 2. e5 {[%clk 0:03:01.2]}
2... Nd5 {[%clk 0:03:00.8]} 3. d4 {[%clk 0:03:01.8]} 3... d6 {[%clk 0:03:01]} 4.
Nf3 {[%clk 0:03:02.2]} 4... Bg4 {[%clk 0:02:58]} 5. Be2 {[%clk 0:03:01.9]} 5...
e6 {[%clk 0:02:57.8]} 6. O-O {[%clk 0:03:01.8]} 6... Be7 {[%clk 0:02:57.7]} 7.
c4 {[%clk 0:03:02.1]} 7... Nb6 {[%clk 0:02:56.9]} 8. Nc3 {[%clk 0:03:00.6]} 8...
a6 {[%clk 0:02:54.6]} 9. b3 {[%clk 0:02:51.3]} 9... O-O {[%clk 0:02:49.5]} 10.
Bb2 {[%clk 0:02:51.4]} 10... N8d7 {[%clk 0:02:29.5]} 11. a4 {[%clk 0:02:43.1]}
11... Bxf3 {[%clk 0:02:06.2]} 12. Bxf3 {[%clk 0:02:43.1]} 12... dxe5 {[%clk
0:02:07.1]} 13. dxe5 {[%clk 0:02:37.2]} 13... Nxe5 {[%clk 0:02:06.5]} 14. Bxb7
{[%clk 0:02:37.4]} 14... Rb8 {[%clk 0:01:50.8]} 15. Be4 {[%clk 0:02:36.8]} 15...
Qxd1 {[%clk 0:01:29.9]} 16. Rfxd1 {[%clk 0:02:37.7]} 16... Nbd7 {[%clk
0:01:29.5]} 17. Bc2 {[%clk 0:02:33.8]} 17... Nc5 {[%clk 0:01:25.9]} 18. Ne4
{[%clk 0:01:58]} 18... Nxc4 {[%clk 0:01:18.6]} 19. Bxg7 {[%clk 0:01:52.1]} 19...
Kxg7 {[%clk 0:01:14.9]} 20. bxc4 {[%clk 0:01:50.6]} 20... Rb4 {[%clk 0:00:58.4]}
21. Rd7 {[%clk 0:01:41.9]} 21... Nxd7 {[%clk 0:00:57.1]} 0-1

[Event "*** Titled Tuesday Blitz"]
[Site "Chess.com"]
[Date "2021.04.06"]
[Round "10"]
[White "anasta10"]
[Black "Magila31"]
[Result "1-0"]
[WhiteElo "2540"]
[BlackElo "2342"]
[TimeControl "180+1"]
[EndTime "11:53:29 PDT"]
[Termination "anasta10 won by resignation"]

1. d4 {[%clk 0:02:55.6]} 1... Nf6 {[%clk 0:02:58.7]} 2. c4 {[%clk 0:02:52.8]}
2... g6 {[%clk 0:02:57.8]} 3. Nc3 {[%clk 0:02:52.8]} 3... Bg7 {[%clk 0:02:57.2]}
4. e4 {[%clk 0:02:53.5]} 4... d6 {[%clk 0:02:56.1]} 5. Bd3 {[%clk 0:02:54]} 5...
O-O {[%clk 0:02:54.6]} 6. Nge2 {[%clk 0:02:54.5]} 6... Nc6 {[%clk 0:02:49.4]} 7.
O-O {[%clk 0:02:54]} 7... e5 {[%clk 0:02:48.4]} 8. d5 {[%clk 0:02:53]} 8... Nd4
{[%clk 0:02:47.8]} 9. Be3 {[%clk 0:02:51.1]} 9... Nd7 {[%clk 0:02:44.6]} 10. Kh1
{[%clk 0:02:49.4]} 10... Nc5 {[%clk 0:02:37]} 11. Bb1 {[%clk 0:02:47]} 11...
Nxe2 {[%clk 0:02:21.1]} 12. Qxe2 {[%clk 0:02:47.9]} 12... a5 {[%clk 0:02:20.7]}
13. Bc2 {[%clk 0:02:47.5]} 13... f5 {[%clk 0:02:13]} 14. exf5 {[%clk 0:02:48.4]}
14... gxf5 {[%clk 0:02:09.7]} 15. f4 {[%clk 0:02:43.9]} 15... e4 {[%clk
0:01:44.6]} 16. Qf2 {[%clk 0:02:40]} 16... Bxc3 {[%clk 0:01:37.6]} 17. bxc3
{[%clk 0:02:40]} 17... b6 {[%clk 0:01:33.4]} 18. Bd4 {[%clk 0:02:36.3]} 18...
Qe8 {[%clk 0:01:25.5]} 19. Rae1 {[%clk 0:02:31.7]} 19... Qg6 {[%clk 0:01:21.8]}
20. Re3 {[%clk 0:02:30.8]} 20... Kf7 {[%clk 0:01:11.9]} 21. Rg3 {[%clk
0:02:30.6]} 21... Qh6 {[%clk 0:01:04.6]} 22. Rg7+ {[%clk 0:02:23.9]} 22... Ke8
{[%clk 0:01:03.3]} 23. Rxc7 {[%clk 0:02:15.1]} 23... Bd7 {[%clk 0:01:03.2]} 24.
Bxc5 {[%clk 0:02:03]} 24... bxc5 {[%clk 0:01:03]} 25. Rb1 {[%clk 0:02:02.9]}
25... Ke7 {[%clk 0:00:59]} 26. Rbb7 {[%clk 0:02:00.5]} 26... Rad8 {[%clk
0:00:46.1]} 27. Ba4 {[%clk 0:01:59.6]} 1-0

[Event "*** Titled Tuesday Blitz"]
[Site "Chess.com"]
[Date "2021.04.06"]
[Round "10"]
[White "mr65"]
[Black "Nemsko"]
[Result "1-0"]
[WhiteElo "2170"]
[BlackElo "2287"]
[TimeControl "180+1"]
[EndTime "11:53:46 PDT"]
[Termination "mr65 won by resignation"]

1. e4 {[%clk 0:03:00.9]} 1... e5 {[%clk 0:02:57.7]} 2. Nf3 {[%clk 0:03:00.4]}
2... Nc6 {[%clk 0:02:58.2]} 3. Bb5 {[%clk 0:02:58.9]} 3... a6 {[%clk 0:02:57.9]}
4. Ba4 {[%clk 0:02:58.6]} 4... Nf6 {[%clk 0:02:57.4]} 5. O-O {[%clk 0:02:57.6]}
5... b5 {[%clk 0:02:56.3]} 6. Bb3 {[%clk 0:02:57.7]} 6... Be7 {[%clk 0:02:54.6]}
7. Re1 {[%clk 0:02:57.6]} 7... d6 {[%clk 0:02:53.7]} 8. c3 {[%clk 0:02:56.6]}
8... O-O {[%clk 0:02:53.4]} 9. h3 {[%clk 0:02:56.5]} 9... Na5 {[%clk 0:02:50.5]}
10. Bc2 {[%clk 0:02:54.7]} 10... c5 {[%clk 0:02:50.2]} 11. d4 {[%clk 0:02:53.9]}
11... exd4 {[%clk 0:02:47.3]} 12. cxd4 {[%clk 0:02:52.8]} 12... Nd7 {[%clk
0:02:44.1]} 13. Nc3 {[%clk 0:02:39.2]} 13... Nc6 {[%clk 0:02:42.2]} 14. d5
{[%clk 0:02:37.6]} 14... Nce5 {[%clk 0:02:41.3]} 15. Nxe5 {[%clk 0:02:37.1]}
15... Nxe5 {[%clk 0:02:40.7]} 16. f4 {[%clk 0:02:35.8]} 16... Ng6 {[%clk
0:02:38.3]} 17. e5 {[%clk 0:02:30.4]} 17... Bh4 {[%clk 0:02:36.5]} 18. Re2
{[%clk 0:02:16.3]} 18... dxe5 {[%clk 0:02:17.3]} 19. fxe5 {[%clk 0:02:14.3]}
19... Bb7 {[%clk 0:02:13.4]} 20. d6 {[%clk 0:02:09.6]} 20... Qd7 {[%clk
0:02:08.8]} 21. Ne4 {[%clk 0:02:05.1]} 21... Nxe5 {[%clk 0:01:57.6]} 22. Nxc5
{[%clk 0:01:47.8]} 22... Qc6 {[%clk 0:01:09.5]} 23. Nxb7 {[%clk 0:01:41.4]}
23... Qxb7 {[%clk 0:01:10.4]} 24. Rxe5 {[%clk 0:01:39.4]} 24... Bf6 {[%clk
0:01:10.2]} 25. Rf5 {[%clk 0:01:34.5]} 25... Qb6+ {[%clk 0:01:04.2]} 26. Kh1
{[%clk 0:01:31.7]} 26... Rad8 {[%clk 0:01:01.6]} 27. Rxf6 {[%clk 0:01:31.6]}
27... gxf6 {[%clk 0:01:00.6]} 28. Qg4+ {[%clk 0:01:29.5]} 28... Kh8 {[%clk
0:01:00.5]} 29. Qf5 {[%clk 0:01:28.4]} 1-0

[Event "*** Titled Tuesday Blitz"]
[Site "Chess.com"]
[Date "2021.04.06"]
[Round "10"]
[White "Caterpiller35"]
[Black "tusplingher"]
[Result "1-0"]
[WhiteElo "2441"]
[BlackElo "2310"]
[TimeControl "180+1"]
[EndTime "11:53:59 PDT"]
[Termination "Caterpiller35 won by resignation"]

1. d4 {[%clk 0:02:03.2]} 1... Nf6 {[%clk 0:02:59]} 2. Bg5 {[%clk 0:02:03.2]}
2... Ne4 {[%clk 0:02:58.6]} 3. Bf4 {[%clk 0:02:03.2]} 3... d5 {[%clk 0:02:58.6]}
4. e3 {[%clk 0:02:03.2]} 4... c5 {[%clk 0:02:57.8]} 5. Bd3 {[%clk 0:02:03.1]}
5... Nc6 {[%clk 0:02:52.1]} 6. Bxe4 {[%clk 0:02:02.9]} 6... dxe4 {[%clk
0:02:52.1]} 7. d5 {[%clk 0:02:03.8]} 7... Nb4 {[%clk 0:02:50.1]} 8. Nc3 {[%clk
0:02:03.7]} 8... Bf5 {[%clk 0:02:40.6]} 9. g4 {[%clk 0:02:03.4]} 9... Bg6 {[%clk
0:02:38.8]} 10. Nge2 {[%clk 0:02:03.7]} 10... Qd7 {[%clk 0:02:36]} 11. a3 {[%clk
0:02:00.8]} 11... Na6 {[%clk 0:02:30]} 12. Ng3 {[%clk 0:02:00.8]} 12... Rd8
{[%clk 0:02:24.4]} 13. h4 {[%clk 0:01:57.3]} 13... h6 {[%clk 0:02:22.1]} 14. Qe2
{[%clk 0:01:51.1]} 14... Nc7 {[%clk 0:02:00.6]} 15. O-O-O {[%clk 0:01:46]} 15...
a6 {[%clk 0:01:48.1]} 16. Bxc7 {[%clk 0:01:26.2]} 16... Qxc7 {[%clk 0:01:45.6]}
17. Ncxe4 {[%clk 0:01:25.8]} 17... e6 {[%clk 0:01:38.5]} 18. dxe6 {[%clk
0:01:18.7]} 18... Rxd1+ {[%clk 0:01:27.2]} 19. Rxd1 {[%clk 0:01:19.6]} 19...
fxe6 {[%clk 0:01:26.9]} 20. h5 {[%clk 0:01:10.7]} 20... Bh7 {[%clk 0:01:26.7]}
21. Qc4 {[%clk 0:01:08.4]} 21... Qe5 {[%clk 0:01:13.2]} 22. f4 {[%clk
0:01:05.4]} 22... Qc7 {[%clk 0:01:10.7]} 23. Qxe6+ {[%clk 0:01:04.7]} 23... Be7
{[%clk 0:01:08.8]} 24. Nd6+ {[%clk 0:01:00.6]} 1-0

[Event "*** Titled Tuesday Blitz"]
[Site "Chess.com"]
[Date "2021.04.06"]
[Round "10"]
[White "Loy_Konstantin"]
[Black "UKR_Master"]
[Result "1-0"]
[WhiteElo "2370"]
[BlackElo "2482"]
[TimeControl "180+1"]
[EndTime "11:54:00 PDT"]
[Termination "Loy_Konstantin won by resignation"]

1. e4 {[%clk 0:02:57.7]} 1... c5 {[%clk 0:02:59.7]} 2. Nf3 {[%clk 0:02:57.3]}
2... d6 {[%clk 0:03:00.3]} 3. d4 {[%clk 0:02:56.7]} 3... cxd4 {[%clk 0:03:01.2]}
4. Qxd4 {[%clk 0:02:57.1]} 4... Nc6 {[%clk 0:03:00.6]} 5. Bb5 {[%clk 0:02:57.5]}
5... Bd7 {[%clk 0:03:01.1]} 6. Bxc6 {[%clk 0:02:57.8]} 6... Bxc6 {[%clk
0:03:02]} 7. Nc3 {[%clk 0:02:58.2]} 7... Nf6 {[%clk 0:03:02]} 8. Bg5 {[%clk
0:02:58.5]} 8... e6 {[%clk 0:03:02.4]} 9. O-O-O {[%clk 0:02:57.7]} 9... Be7
{[%clk 0:03:02.9]} 10. Rhe1 {[%clk 0:02:57.1]} 10... O-O {[%clk 0:03:03.2]} 11.
e5 {[%clk 0:02:57]} 11... dxe5 {[%clk 0:03:00]} 12. Qh4 {[%clk 0:02:57.6]} 12...
Qc7 {[%clk 0:02:51.7]} 13. Nxe5 {[%clk 0:02:57.1]} 13... Rad8 {[%clk 0:02:50.5]}
14. Ng4 {[%clk 0:02:56.6]} 14... Nd5 {[%clk 0:02:40.7]} 15. Rxd5 {[%clk
0:02:18.2]} 15... Bxg5+ {[%clk 0:01:48.9]} 16. Rxg5 {[%clk 0:02:15.4]} 16...
Qf4+ {[%clk 0:01:49]} 17. Kb1 {[%clk 0:02:04.8]} 17... Rd4 {[%clk 0:01:40.8]}
18. g3 {[%clk 0:01:04.9]} 18... Qf3 {[%clk 0:01:08.8]} 19. Nh6+ {[%clk
0:00:44.7]} 19... Kh8 {[%clk 0:01:08.6]} 20. Qxd4 {[%clk 0:00:45.2]} 1-0

[Event "*** Titled Tuesday Blitz"]
[Site "Chess.com"]
[Date "2021.04.06"]
[Round "10"]
[White "zurzan"]
[Black "monikarozman"]
[Result "1-0"]
[WhiteElo "2005"]
[BlackElo "2168"]
[TimeControl "180+1"]
[EndTime "11:54:02 PDT"]
[Termination "zurzan won by resignation"]

1. f4 {[%clk 0:03:00.9]} 1... d5 {[%clk 0:02:58.3]} 2. Nf3 {[%clk 0:03:01.1]}
2... Nf6 {[%clk 0:02:57.5]} 3. g3 {[%clk 0:03:02]} 3... c5 {[%clk 0:02:54.4]} 4.
Bg2 {[%clk 0:03:02.9]} 4... Nc6 {[%clk 0:02:54.3]} 5. O-O {[%clk 0:03:03.8]}
5... e6 {[%clk 0:02:50.3]} 6. d3 {[%clk 0:03:04.7]} 6... Be7 {[%clk 0:02:47.2]}
7. c3 {[%clk 0:03:05.6]} 7... O-O {[%clk 0:02:46.6]} 8. Qc2 {[%clk 0:03:06.5]}
8... d4 {[%clk 0:02:46.8]} 9. h3 {[%clk 0:03:03.7]} 9... Qd6 {[%clk 0:02:42.4]}
10. a4 {[%clk 0:03:02]} 10... Rd8 {[%clk 0:02:41.4]} 11. Na3 {[%clk 0:02:59.9]}
11... a6 {[%clk 0:02:39.8]} 12. Nc4 {[%clk 0:02:59.5]} 12... Qc7 {[%clk
0:02:35.5]} 13. a5 {[%clk 0:02:56.9]} 13... Nd5 {[%clk 0:02:14.1]} 14. Nfe5
{[%clk 0:02:44.5]} 14... Nxe5 {[%clk 0:02:09]} 15. fxe5 {[%clk 0:02:43.1]} 15...
Bf8 {[%clk 0:02:05.3]} 16. e4 {[%clk 0:02:11.2]} 16... dxe3 {[%clk 0:02:02]} 17.
Nxe3 {[%clk 0:02:06.3]} 17... Nxe3 {[%clk 0:02:01.2]} 18. Bxe3 {[%clk
0:02:06.4]} 18... Bd7 {[%clk 0:02:01.5]} 19. Qf2 {[%clk 0:02:02.6]} 19... Be8
{[%clk 0:01:58.9]} 20. d4 {[%clk 0:02:00.2]} 20... cxd4 {[%clk 0:01:56.4]} 21.
Bxd4 {[%clk 0:01:55.8]} 21... Rac8 {[%clk 0:01:53.5]} 22. Bb6 {[%clk 0:01:49.2]}
22... Bc5 {[%clk 0:01:41.4]} 23. Bxc5 {[%clk 0:01:47.3]} 23... Qxc5 {[%clk
0:01:41]} 24. Qxc5 {[%clk 0:01:40.3]} 24... Rxc5 {[%clk 0:01:41.9]} 25. Bxb7
{[%clk 0:01:34.7]} 25... Rxe5 {[%clk 0:01:34.8]} 26. Bxa6 {[%clk 0:01:33.7]}
26... Rd2 {[%clk 0:01:34.4]} 27. Rf2 {[%clk 0:01:31.9]} 27... Red5 {[%clk
0:01:32]} 28. Bb7 {[%clk 0:01:14.6]} 28... Rxf2 {[%clk 0:01:29.6]} 29. Kxf2
{[%clk 0:01:15.5]} 29... Rd2+ {[%clk 0:01:29.5]} 30. Ke3 {[%clk 0:01:15.3]}
30... Rxb2 {[%clk 0:01:28.2]} 31. a6 {[%clk 0:01:15.2]} 1-0

[Event "*** Titled Tuesday Blitz"]
[Site "Chess.com"]
[Date "2021.04.06"]
[Round "10"]
[White "Alexander_Moskalenko"]
[Black "FairChess_on_YouTube"]
[Result "1-0"]
[WhiteElo "2771"]
[BlackElo "2981"]
[TimeControl "180+1"]
[EndTime "11:54:09 PDT"]
[Termination "Alexander_Moskalenko won by resignation"]

1. e4 {[%clk 0:03:00.9]} 1... c5 {[%clk 0:02:59.8]} 2. Ne2 {[%clk 0:02:54.7]}
2... Nf6 {[%clk 0:02:57.2]} 3. Nbc3 {[%clk 0:02:53.8]} 3... d5 {[%clk
0:02:57.4]} 4. exd5 {[%clk 0:02:54.7]} 4... Nxd5 {[%clk 0:02:57.6]} 5. d4 {[%clk
0:02:51]} 5... Nxc3 {[%clk 0:02:56.7]} 6. bxc3 {[%clk 0:02:50.9]} 6... g6 {[%clk
0:02:52.9]} 7. Be3 {[%clk 0:02:47.3]} 7... Bg7 {[%clk 0:02:52.4]} 8. dxc5 {[%clk
0:02:39.6]} 8... O-O {[%clk 0:02:50.2]} 9. Qxd8 {[%clk 0:02:32.5]} 9... Rxd8
{[%clk 0:02:51.1]} 10. g3 {[%clk 0:02:32.4]} 10... Bd7 {[%clk 0:02:40.6]} 11.
Bg2 {[%clk 0:02:31]} 11... Bc6 {[%clk 0:02:40.4]} 12. O-O {[%clk 0:02:31.6]}
12... Bxg2 {[%clk 0:02:28.2]} 13. Kxg2 {[%clk 0:02:32.5]} 13... Na6 {[%clk
0:02:28]} 14. Rab1 {[%clk 0:02:28.7]} 14... Rd7 {[%clk 0:02:28]} 15. Rb5 {[%clk
0:02:22.8]} 15... Rc8 {[%clk 0:02:20.1]} 16. Rfb1 {[%clk 0:02:22.3]} 16... Rcc7
{[%clk 0:02:20.4]} 17. c6 {[%clk 0:02:17.2]} 17... Rxc6 {[%clk 0:02:09.9]} 18.
Rxb7 {[%clk 0:02:17.7]} 18... Rxb7 {[%clk 0:01:58]} 19. Rxb7 {[%clk 0:02:18.6]}
19... Kf8 {[%clk 0:01:46]} 20. Rxa7 {[%clk 0:02:15.9]} 20... Ke8 {[%clk
0:01:46.6]} 21. a4 {[%clk 0:02:05.8]} 21... Be5 {[%clk 0:01:45]} 22. Nd4 {[%clk
0:02:04]} 22... Bxd4 {[%clk 0:01:41.4]} 23. Bxd4 {[%clk 0:01:44.2]} 23... f6
{[%clk 0:01:41.2]} 24. f4 {[%clk 0:01:44.3]} 24... Nc7 {[%clk 0:01:38.7]} 25.
Kf3 {[%clk 0:01:26.9]} 25... Kd7 {[%clk 0:01:38.3]} 26. a5 {[%clk 0:01:23.9]}
26... Kd6 {[%clk 0:01:38.4]} 27. Ke4 {[%clk 0:01:18.5]} 27... Nb5 {[%clk
0:01:32.6]} 28. Rb7 {[%clk 0:01:16.1]} 28... Nxc3+ {[%clk 0:01:32.7]} 29. Kd3
{[%clk 0:01:15.5]} 29... Nd5 {[%clk 0:01:22.1]} 30. c4 {[%clk 0:01:15.4]} 30...
Nc7 {[%clk 0:01:22.7]} 31. Bb6 {[%clk 0:01:15.7]} 31... Na6 {[%clk 0:01:16.5]}
32. Kd4 {[%clk 0:01:13.3]} 32... e5+ {[%clk 0:01:14.2]} 33. fxe5+ {[%clk
0:01:14.2]} 33... fxe5+ {[%clk 0:01:14.8]} 34. Kc3 {[%clk 0:01:12.1]} 34... h5
{[%clk 0:01:11]} 35. Rg7 {[%clk 0:01:11.8]} 1-0